bitfinex/quotes_BTCUSD_20240908
["timestamp","ask_amount","ask_price","bid_price","bid_amount"]
[1725772341243,0.95587586,54635.0,54634.0,0.00163]
[1725772344229,1.03829095,54635.0,54634.0,0.00163]
[1725772345369,0.03601886,54635.0,54634.0,0.07963]
[1725772345592,0.16414086,54635.0,54634.0,0.18603]
[1725772346504,0.42038586,54635.0,54634.0,0.18603]
[1725772347144,0.42438586,54635.0,54634.0,0.18703]
[1725772347593,0.16414086,54635.0,54634.0,0.18603]
[1725772347807,0.16414086,54635.0,54634.0,0.18703]
[1725772348094,0.16414086,54635.0,54634.0,0.19003]
[1725772348336,0.16514086,54635.0,54634.0,0.19403]
[1725772348791,0.19284026,54635.0,54634.0,0.18603]
[1725772350103,0.19284026,54635.0,54634.0,0.18703]
[1725772350520,0.19284026,54635.0,54634.0,0.18603]
[1725772350775,0.19284026,54635.0,54634.0,0.18703]
[1725772353219,0.44908526,54635.0,54634.0,0.18703]
[1725772353430,0.19284026,54635.0,54634.0,0.18703]
[1725772355847,0.256241,54636.0,54634.0,0.18703]
[1725772357119,0.258241,54636.0,54634.0,0.18603]
[1725772357330,0.128122,54635.0,54634.0,0.18603]
[1725772358536,0.128122,54635.0,54634.0,0.18703]
[1725772360262,0.128122,54635.0,54634.0,0.18603]
[1725772361072,0.128122,54635.0,54634.0,0.18803]
[1725772361273,0.128122,54635.0,54634.0,0.18703]
[1725772361724,0.128122,54635.0,54634.0,0.18803]
[1725772361945,0.128122,54635.0,54634.0,0.18703]
[1725772362158,0.15682141,54635.0,54634.0,0.18703]
[1725772362811,0.15682141,54635.0,54634.0,0.18603]
[1725772363280,0.41306641,54635.0,54634.0,0.18603]
[1725772363503,0.41306641,54635.0,54634.0,0.08163]
[1725772363925,0.41306641,54635.0,54634.0,0.07963]
[1725772364128,0.41306641,54635.0,54634.0,0.08063]
[1725772364373,0.41388141,54635.0,54634.0,0.08063]
[1725772364819,0.41388141,54635.0,54634.0,0.07963]
[1725772365294,0.41688141,54635.0,54634.0,0.07963]
[1725772365505,0.388182,54635.0,54634.0,0.07963]
[1725772365750,0.388182,54635.0,54634.0,0.00163]
[1725772365751,0.644427,54635.0,54634.0,0.00163]
[1725772366197,0.900672,54635.0,54634.0,0.00163]
[1725772366414,1.03067247,54635.0,54634.0,0.00163]
[1725772366881,1.03667247,54635.0,54634.0,0.00163]
[1725772367103,0.924672,54635.0,54634.0,0.00163]
[1725772367305,1.03067247,54635.0,54634.0,0.00163]
[1725772367513,1.03367247,54635.0,54634.0,0.00163]
[1725772367730,0.927672,54635.0,54634.0,0.00163]
[1725772368186,1.03767247,54635.0,54634.0,0.00163]
[1725772369695,0.927672,54635.0,54634.0,0.00163]
[1725772369897,1.03767247,54635.0,54634.0,0.00163]
[1725772375070,1.03769856,54635.0,54634.0,0.00163]
[1725772375650,1.03769757,54635.0,54634.0,0.00163]
[1725772376426,0.927672,54635.0,54634.0,0.00163]
[1725772377259,1.03769757,54635.0,54634.0,0.00163]
[1725772377460,0.927672,54635.0,54634.0,0.08473]
[1725772377926,0.927672,54635.0,54634.0,0.06557697]
[1725772381196,0.640625,54634.0,54633.0,0.00150203]
[1725772381419,0.663625,54634.0,54633.0,0.00150203]
[1725772381673,0.919875,54634.0,54633.0,0.00150203]
[1725772381899,0.94857538,54634.0,54633.0,0.00150203]
[1725772382601,0.94857538,54634.0,54621.0,0.444159]
[1725772382602,0.384459,54622.0,54621.0,0.444159]
[1725772382825,0.384459,54622.0,54617.0,0.0831]
[1725772382826,0.384487,54618.0,54617.0,0.0831]
[1725772383063,0.897137,54618.0,54617.0,0.0831]
[1725772383277,1.055803,54618.0,54617.0,0.0831]
[1725772383540,0.640872,54613.0,54612.0,0.1032]
[1725772383769,0.663872,54613.0,54612.0,0.1032]
[1725772383994,0.663872,54613.0,54612.0,0.1863]
[1725772384438,0.663872,54613.0,54612.0,0.0831]
[1725772384899,0.408523,54613.0,54612.0,0.0851]
[1725772385363,0.407523,54613.0,54612.0,0.0831]
[1725772386316,0.40967615,54613.0,54612.0,0.0831]
[1725772386962,0.41567615,54613.0,54612.0,0.0831]
[1725772387186,0.41767615,54613.0,54612.0,0.0831]
[1725772387407,0.41167615,54613.0,54612.0,0.0831]
[1725772387833,0.41467615,54613.0,54612.0,0.0831]
[1725772388058,0.41267615,54613.0,54612.0,0.0831]
[1725772388503,0.41567615,54613.0,54612.0,0.0831]
[1725772388975,0.44438622,54613.0,54612.0,0.0831]
[1725772389192,0.44138622,54613.0,54612.0,0.0831]
[1725772389406,0.44538622,54613.0,54612.0,0.0831]
[1725772389627,0.70173522,54613.0,54612.0,0.0831]
[1725772389855,0.70173522,54613.0,54612.0,0.084732]
[1725772391883,0.70173522,54613.0,54612.0,0.001632]
[1725772391884,0.95808422,54613.0,54612.0,0.001632]
[1725772392722,0.95408422,54613.0,54612.0,0.001632]
[1725772392947,0.96108422,54613.0,54612.0,0.001632]
[1725772393167,0.95808422,54613.0,54612.0,0.001632]
[1725772393414,0.95108422,54613.0,54612.0,0.001632]
[1725772393641,0.96808422,54613.0,54612.0,0.001632]
[1725772393873,0.96108422,54613.0,54612.0,0.001632]
[1725772394299,0.97208422,54613.0,54612.0,0.001632]
[1725772395585,0.94337415,54613.0,54612.0,0.001632]
[1725772396009,0.93337415,54613.0,54612.0,0.001632]
[1725772396442,0.93944752,54613.0,54612.0,0.001632]
[1725772396651,0.94844752,54613.0,54612.0,0.001632]
[1725772396862,0.93744752,54613.0,54612.0,0.001632]
[1725772397082,0.94744752,54613.0,54612.0,0.001632]
[1725772398276,0.94744752,54613.0,54612.0,0.184232]
[1725772398277,0.019,54613.0,54612.0,0.184232]
[1725772398496,0.019,54613.0,54612.0,0.27203851]
[1725772398715,0.04770903,54613.0,54612.0,0.184232]
[1725772398976,0.04770903,54613.0,54612.0,0.312408]
[1725772399369,0.03870903,54613.0,54612.0,0.568761]
[1725772399597,0.02870903,54613.0,54612.0,0.568761]
[1725772399815,0.04770903,54613.0,54612.0,0.312408]
[1725772400547,0.02870903,54613.0,54612.0,0.312408]
[1725772400751,0.02870903,54613.0,54612.0,0.314408]
[1725772403657,0.02870903,54613.0,54612.0,0.186232]
[1725772404124,0.41323203,54613.0,54612.0,0.003632]
[1725772404299,0.94893003,54613.0,54612.0,0.003632]
[1725772405394,0.94893003,54613.0,54612.0,0.001632]
[1725772405619,0.920221,54613.0,54612.0,0.001632]
[1725772405834,0.920221,54613.0,54612.0,0.003632]
[1725772406440,0.920221,54613.0,54612.0,0.001632]
[1725772406647,0.927221,54613.0,54612.0,0.001632]
[1725772407071,0.931221,54613.0,54612.0,0.001632]
[1725772407346,0.927221,54613.0,54612.0,0.001632]
[1725772407692,0.934221,54613.0,54612.0,0.001632]
[1725772408357,0.927221,54613.0,54612.0,0.001632]
[1725772408791,0.920221,54613.0,54612.0,0.001632]
[1725772409209,0.926221,54613.0,54612.0,0.001632]
[1725772409634,0.920221,54613.0,54612.0,0.001632]
[1725772409846,0.926221,54613.0,54612.0,0.001632]
[1725772410044,0.927221,54613.0,54612.0,0.001632]
[1725772410268,0.95593395,54613.0,54612.0,0.001632]
[1725772410486,0.95693395,54613.0,54612.0,0.001632]
[1725772410902,0.96593395,54613.0,54612.0,0.001632]
[1725772411144,0.95793395,54613.0,54612.0,0.001632]
[1725772411564,0.96493395,54613.0,54612.0,0.001632]
[1725772412036,0.01915304,54618.0,54617.0,0.128165]
[1725772412247,0.01915304,54618.0,54617.0,0.98949864]
[1725772412496,0.000815,54635.0,54632.0,0.1839]
[1725772413382,0.000815,54635.0,54632.0,0.312029]
[1725772413617,0.000815,54635.0,54632.0,0.304029]
[1725772414907,0.001815,54635.0,54632.0,0.304029]
[1725772415113,0.000815,54635.0,54633.0,0.128126]
[1725772415331,0.000815,54635.0,54632.0,0.1769]
[1725772415789,0.000815,54635.0,54632.0,0.1759]
[1725772416617,0.000815,54635.0,54632.0,0.1779]
[1725772416837,0.000815,54635.0,54632.0,0.1759]
[1725772417042,0.001815,54635.0,54632.0,0.1759]
[1725772417600,0.00891928,54634.0,54632.0,0.1759]
[1725772418028,0.01996804,54650.0,54632.0,0.1759]
[1725772418230,0.128121,54636.0,54632.0,0.1759]
[1725772418778,0.128116,54638.0,54632.0,0.304028]
[1725772418968,0.128119,54637.0,54632.0,0.305028]
[1725772419459,0.02869888,54636.0,54632.0,0.304028]
[1725772419663,0.002,54636.0,54632.0,0.304028]
[1725772420265,0.128119,54637.0,54632.0,0.304028]
[1725772421442,0.130119,54637.0,54632.0,0.304028]
[1725772421660,0.133119,54637.0,54632.0,0.304028]
[1725772422005,0.15682212,54636.0,54632.0,0.304028]
[1725772423145,0.15882212,54636.0,54632.0,0.304028]
[1725772425343,0.15882212,54636.0,54635.0,0.128122]
[1725772425344,0.03151612,54636.0,54635.0,0.128122]
[1725772425971,0.000815,54636.0,54635.0,0.818512]
[1725772426178,0.000815,54636.0,54635.0,0.562267]
[1725772426387,0.001815,54636.0,54635.0,0.562267]
[1725772426831,0.001815,54636.0,54635.0,0.563267]
[1725772427515,0.001815,54636.0,54635.0,0.562267]
[1725772427954,0.001815,54636.0,54635.0,0.568267]
[1725772428154,0.02096804,54636.0,54635.0,0.568267]
[1725772428924,0.02096804,54636.0,54635.0,0.573267]
[1725772429126,0.01996804,54636.0,54635.0,0.567267]
[1725772429326,0.01996804,54636.0,54635.0,0.562267]
[1725772429528,0.02096804,54636.0,54635.0,0.568267]
[1725772429738,0.01996804,54636.0,54635.0,0.567267]
[1725772430174,0.02096804,54636.0,54635.0,0.573267]
[1725772433421,0.04966719,54636.0,54635.0,0.573267]
[1725772436929,0.04966719,54636.0,54635.0,0.574897]
[1725772437601,0.02096804,54636.0,54635.0,0.574897]
[1725772440048,0.02096804,54636.0,54635.0,0.318652]
[1725772442196,0.04966763,54636.0,54635.0,0.318652]
[1725772445612,0.02096804,54636.0,54635.0,0.318652]
[1725772445820,0.02096804,54636.0,54635.0,0.574897]
[1725772448881,0.04966601,54636.0,54635.0,0.574897]
[1725772454608,0.02096804,54636.0,54635.0,0.574897]
[1725772464587,0.04966673,54636.0,54635.0,0.574897]
[1725772465888,0.04966673,54636.0,54635.0,0.831142]
[1725772467443,0.08252879,54644.0,54636.0,0.256239]
[1725772467683,0.128107,54642.0,54638.0,0.128115]
[1725772468112,0.14726004,54642.0,54638.0,0.128115]
[1725772469429,0.01915304,54642.0,54639.0,0.128112]
[1725772470953,0.07802883,54642.0,54639.0,0.128112]
[1725772471160,0.05085072,54642.0,54639.0,0.128112]
[1725772471751,0.04985072,54642.0,54639.0,0.128112]
[1725772472203,0.04985072,54642.0,54641.0,0.384325]
[1725772472407,0.04785072,54642.0,54641.0,0.464925]
[1725772472613,0.04885072,54642.0,54641.0,0.464925]
[1725772472826,0.02015304,54642.0,54641.0,0.464925]
[1725772473063,0.02096804,54642.0,54641.0,0.464925]
[1725772473296,0.01996804,54642.0,54641.0,0.464925]
[1725772473502,0.01996804,54642.0,54641.0,0.467925]
[1725772473971,0.01996804,54642.0,54641.0,0.464925]
[1725772474400,0.01996804,54642.0,54641.0,0.469925]
[1725772474816,0.02096804,54642.0,54641.0,0.475925]
[1725772478416,0.0496637,54642.0,54641.0,0.475925]
[1725772479898,0.0496637,54642.0,54641.0,0.732142]
[1725772480793,0.02096804,54642.0,54641.0,0.732142]
[1725772484010,0.04966396,54642.0,54641.0,0.732142]
[1725772484715,0.04966396,54642.0,54641.0,0.733772]
[1725772485354,0.04966396,54642.0,54641.0,0.477555]
[1725772497838,0.02096804,54642.0,54641.0,0.477555]
[1725772499854,0.02096804,54642.0,54641.0,0.140738]
[1725772500740,0.02899712,54642.0,54641.0,0.140738]
[1725772501178,0.05769263,54642.0,54641.0,0.396955]
[1725772501411,0.05769263,54642.0,54641.0,0.140738]
[1725772506791,0.04966355,54642.0,54641.0,0.140738]
[1725772511511,0.04966355,54642.0,54641.0,0.01263]
[1725772513494,0.02096804,54642.0,54641.0,0.01263]
[1725772516071,0.001815,54642.0,54641.0,0.01263]
[1725772517501,0.01001331,54642.0,54641.0,0.01263]
[1725772518610,0.13811931,54642.0,54641.0,0.01263]
[1725772519461,0.01001331,54642.0,54641.0,0.01263]
[1725772521235,0.98735831,54642.0,54641.0,0.01263]
[1725772521452,0.75414531,54642.0,54641.0,0.01263]
[1725772521657,0.8917222,54642.0,54641.0,0.01263]
[1725772521853,0.61313984,54642.0,54641.0,0.01263]
[1725772522100,0.53253984,54642.0,54641.0,0.01263]
[1725772523143,0.53153984,54642.0,54641.0,0.00663]
[1725772523374,0.53153984,54642.0,54641.0,0.01163]
[1725772523594,0.39396295,54642.0,54641.0,0.00663]
[1725772523813,0.39396295,54642.0,54641.0,0.00563]
[1725772524247,0.39396295,54642.0,54641.0,0.00163]
[1725772524470,0.50397016,54642.0,54641.0,0.00163]
[1725772524712,0.50496914,54642.0,54641.0,0.00163]
[1725772525342,0.50396914,54642.0,54641.0,0.00163]
[1725772525750,0.50596914,54642.0,54641.0,0.00163]
[1725772525966,0.52512581,54642.0,54641.0,0.00163]
[1725772526179,0.52612581,54642.0,54641.0,0.00163]
[1725772526586,0.52610388,54642.0,54641.0,0.00163]
[1725772526807,0.52410388,54642.0,54641.0,0.00163]
[1725772527304,0.52510388,54642.0,54641.0,0.00163]
[1725772527645,0.52410388,54642.0,54641.0,0.00163]
[1725772528032,0.52610388,54642.0,54641.0,0.00163]
[1725772528458,0.66933262,54642.0,54641.0,0.00163]
[1725772528675,0.77931688,54642.0,54641.0,0.00163]
[1725772528869,0.78031688,54642.0,54641.0,0.00163]
[1725772529505,0.67033262,54642.0,54641.0,0.00163]
[1725772530315,0.66933262,54642.0,54641.0,0.00163]
[1725772530516,0.67133262,54642.0,54641.0,0.00163]
[1725772530945,0.69433262,54642.0,54641.0,0.00163]
[1725772531143,0.69233262,54642.0,54641.0,0.00163]
[1725772531575,0.69333262,54642.0,54641.0,0.00163]
[1725772531794,0.69747794,54642.0,54641.0,0.00163]
[1725772532038,0.69847794,54642.0,54641.0,0.00163]
[1725772532233,0.69747794,54642.0,54641.0,0.00163]
[1725772532855,0.7799366,54642.0,54641.0,0.00163]
[1725772533698,0.7889366,54642.0,54641.0,0.00263]
[1725772533900,0.7809366,54642.0,54641.0,0.00163]
[1725772534095,0.7789366,54642.0,54641.0,0.00263]
[1725772534304,0.7859366,54642.0,54641.0,0.00263]
[1725772534516,0.7859366,54642.0,54641.0,0.00363]
[1725772534517,0.7939366,54642.0,54641.0,0.00363]
[1725772536416,1.2430496,54642.0,54641.0,0.00363]
[1725772536637,1.16059094,54642.0,54641.0,0.00363]
[1725772537496,1.16059094,54642.0,54641.0,0.00163]
[1725772537497,1.14559094,54642.0,54641.0,0.00163]
[1725772537699,1.15259094,54642.0,54641.0,0.00263]
[1725772537918,1.15959094,54642.0,54641.0,0.00363]
[1725772538578,0.640602,54636.0,54635.0,0.00163]
[1725772538785,0.14106266,54636.0,54635.0,0.00163]
[1725772539899,0.14206266,54636.0,54635.0,0.00163]
[1725772541215,0.16021933,54636.0,54635.0,0.00163]
[1725772541429,0.06788238,54636.0,54635.0,0.00163]
[1725772541649,0.42697992,54636.0,54635.0,0.00163]
[1725772542085,0.17073892,54636.0,54635.0,0.00163]
[1725772542790,0.45436569,54636.0,54635.0,0.00163]
[1725772543052,0.16942494,54636.0,54635.0,0.00163]
[1725772543466,0.16842494,54636.0,54635.0,0.00163]
[1725772543836,0.16842494,54636.0,54635.0,0.00363]
[1725772544038,0.16842494,54636.0,54635.0,0.00663]
[1725772545851,0.42466594,54636.0,54635.0,0.00663]
[1725772546307,0.4533659,54636.0,54635.0,0.00663]
[1725772549048,0.45608475,54636.0,54635.0,0.00663]
[1725772549886,0.45608475,54636.0,54635.0,0.00363]
[1725772550339,0.45608475,54636.0,54635.0,0.00163]
[1725772550767,0.45708475,54636.0,54635.0,0.00163]
[1725772551101,0.45608475,54636.0,54635.0,0.00163]
[1725772551561,0.45708475,54636.0,54635.0,0.00163]
[1725772555654,0.20084375,54636.0,54635.0,0.00163]
[1725772555869,0.45708475,54636.0,54635.0,0.00163]
[1725772556076,0.47624142,54636.0,54635.0,0.00163]
[1725772558069,0.22000042,54636.0,54635.0,0.00163]
[1725772560692,0.47624142,54636.0,54635.0,0.00163]
[1725772561129,0.73248242,54636.0,54635.0,0.00163]
[1725772561350,0.81458242,54636.0,54635.0,0.00163]
[1725772561583,0.73248242,54636.0,54635.0,0.00163]
[1725772563097,0.47624142,54636.0,54635.0,0.00163]
[1725772564782,0.09188042,54636.0,54635.0,0.00163]
[1725772564989,0.09188042,54636.0,54635.0,0.210952]
[1725772565421,0.06318046,54636.0,54635.0,0.210952]
[1725772566272,0.06218046,54636.0,54635.0,0.210952]
[1725772566526,0.06218046,54636.0,54635.0,0.211952]
[1725772567139,0.06218046,54636.0,54635.0,0.210952]
[1725772567361,0.06218046,54636.0,54635.0,0.214952]
[1725772567841,0.06218046,54636.0,54635.0,0.213952]
[1725772568060,0.06218046,54636.0,54635.0,0.217952]
[1725772568761,0.09087924,54636.0,54635.0,0.217952]
[1725772573404,0.09087924,54636.0,54635.0,0.08983]
[1725772573847,0.09087924,54636.0,54635.0,0.00863]
[1725772574081,0.17328238,54636.0,54635.0,0.00863]
[1725772574512,0.09087924,54636.0,54635.0,0.00863]
[1725772574923,0.17328238,54636.0,54635.0,0.00863]
[1725772575192,0.09087924,54636.0,54635.0,0.00863]
[1725772576273,0.17339294,54636.0,54635.0,0.00863]
[1725772576502,0.09087924,54636.0,54635.0,0.00863]
[1725772576751,0.01087305,54636.0,54635.0,0.00863]
[1725772580682,0.03957183,54636.0,54635.0,0.00863]
[1725772583449,0.03957183,54636.0,54635.0,0.136752]
[1725772583667,0.03957183,54636.0,54635.0,0.00863]
[1725772586481,0.01087305,54636.0,54635.0,0.00863]
[1725772589866,0.09341427,54636.0,54635.0,0.136752]
[1725772590067,0.01087305,54636.0,54635.0,0.136752]
[1725772591003,0.09341225,54636.0,54635.0,0.136752]
[1725772591217,0.01087305,54636.0,54635.0,0.136752]
[1725772591425,0.09341225,54636.0,54635.0,0.136752]
[1725772591677,0.01087305,54636.0,54635.0,0.00863]
[1725772591867,0.09341225,54636.0,54635.0,0.00863]
[1725772592097,0.01087305,54636.0,54635.0,0.00863]
[1725772592303,0.09341437,54636.0,54635.0,0.00863]
[1725772592730,0.01087305,54636.0,54635.0,0.00863]
[1725772593408,0.09341216,54636.0,54635.0,0.00863]
[1725772593631,0.01087305,54636.0,54635.0,0.136752]
[1725772594066,0.03957147,54636.0,54635.0,0.136752]
[1725772604408,0.01087305,54636.0,54635.0,0.136752]
[1725772604847,0.01087305,54636.0,54635.0,0.00863]
[1725772605328,0.12092496,54636.0,54635.0,0.136752]
[1725772606015,0.24904496,54636.0,54635.0,0.00863]
[1725772606598,0.13899305,54636.0,54635.0,0.00863]
[1725772607026,0.13899305,54636.0,54635.0,0.00563]
[1725772607275,0.14099305,54636.0,54635.0,0.00163]
[1725772607467,0.25206771,54636.0,54635.0,0.00163]
[1725772607690,0.14199305,54636.0,54635.0,0.00163]
[1725772607900,0.25006806,54636.0,54635.0,0.00163]
[1725772608121,0.25206806,54636.0,54635.0,0.00163]
[1725772608329,0.25106959,54636.0,54635.0,0.00163]
[1725772608607,0.24906969,54636.0,54635.0,0.00163]
[1725772609060,0.76255169,54636.0,54635.0,0.00163]
[1725772609265,0.65247505,54636.0,54635.0,0.00163]
[1725772610969,0.65147505,54636.0,54635.0,0.00163]
[1725772611200,0.76153912,54636.0,54635.0,0.00163]
[1725772611401,0.76253912,54636.0,54635.0,0.00163]
[1725772612024,0.65247505,54636.0,54635.0,0.00163]
[1725772612855,0.65147505,54636.0,54635.0,0.00163]
[1725772614129,0.65447505,54636.0,54635.0,0.00163]
[1725772614758,0.65647505,54636.0,54635.0,0.00163]
[1725772615203,0.79806018,54636.0,54635.0,0.00163]
[1725772615607,0.65647505,54636.0,54635.0,0.00163]
[1725772615809,0.79406018,54636.0,54635.0,0.00163]
[1725772616020,0.65947505,54636.0,54635.0,0.00163]
[1725772616248,0.76952002,54636.0,54635.0,0.00163]
[1725772616445,0.79703126,54636.0,54635.0,0.00163]
[1725772618774,0.82573157,54636.0,54635.0,0.00163]
[1725772620930,0.82571361,54636.0,54635.0,0.00163]
[1725772621357,0.68817536,54636.0,54635.0,0.00163]
[1725772621961,0.82571361,54636.0,54635.0,0.00163]
[1725772622161,0.68817536,54636.0,54635.0,0.00163]
[1725772623767,0.79819233,54636.0,54635.0,0.00163]
[1725772624025,0.7981928,54636.0,54635.0,0.00163]
[1725772624246,0.68817536,54636.0,54635.0,0.00163]
[1725772624464,0.7981928,54636.0,54635.0,0.00163]
[1725772625103,0.79818817,54636.0,54635.0,0.00163]
[1725772625311,0.68817536,54636.0,54635.0,0.00163]
[1725772625727,0.79818717,54636.0,54635.0,0.00163]
[1725772625946,0.65947505,54636.0,54635.0,0.00163]
[1725772627210,0.01887305,54636.0,54635.0,0.00163]
[1725772627436,0.01887305,54636.0,54635.0,0.08363]
[1725772627671,0.14699305,54636.0,54635.0,0.08363]
[1725772628317,0.14399305,54636.0,54635.0,0.08363]
[1725772628560,0.13899305,54636.0,54635.0,0.08363]
[1725772628786,0.14199305,54636.0,54635.0,0.08363]
[1725772629284,0.42393337,54636.0,54635.0,0.00163]
[1725772629499,0.42493337,54636.0,54635.0,0.00163]
[1725772630794,0.42393337,54636.0,54635.0,0.00163]
[1725772631220,0.42393337,54636.0,54635.0,0.00263]
[1725772631438,1.02361537,54636.0,54635.0,0.00263]
[1725772631648,1.04761537,54636.0,54635.0,0.00263]
[1725772632083,1.18296196,54636.0,54635.0,0.00263]
[1725772632934,1.18396196,54636.0,54635.0,0.00263]
[1725772633175,1.01891605,54636.0,54635.0,0.00263]
[1725772633630,1.01891605,54636.0,54635.0,0.00163]
[1725772634133,1.02091605,54636.0,54635.0,0.00163]
[1725772634362,1.01791605,54636.0,54635.0,0.00163]
[1725772634578,1.02091605,54636.0,54635.0,0.00163]
[1725772635225,1.10868123,54636.0,54635.0,0.00163]
[1725772635478,1.13738354,54636.0,54635.0,0.00163]
[1725772636852,1.13938354,54636.0,54635.0,0.00163]
[1725772637681,1.11638354,54636.0,54635.0,0.00163]
[1725772640941,1.02861836,54636.0,54635.0,0.00163]
[1725772641150,1.11638354,54636.0,54635.0,0.00163]
[1725772644240,1.25383212,54636.0,54635.0,0.00163]
[1725772644906,1.11638354,54636.0,54635.0,0.00163]
[1725772646882,1.25383633,54636.0,54635.0,0.00163]
[1725772647576,1.16663633,54636.0,54635.0,0.00163]
[1725772648690,0.82263015,54636.0,54635.0,0.00163]
[1725772648912,0.82263015,54636.0,54635.0,0.08603]
[1725772649136,0.79392784,54636.0,54635.0,0.08603]
[1725772649347,0.79394971,54636.0,54635.0,0.08603]
[1725772649584,0.79394971,54636.0,54635.0,0.00163]
[1725772650020,0.79394967,54636.0,54635.0,0.00163]
[1725772650248,0.65647505,54636.0,54635.0,0.00163]
[1725772650484,0.79395752,54636.0,54635.0,0.00163]
[1725772651788,0.65647505,54636.0,54635.0,0.00163]
[1725772652031,0.28148095,54636.0,54635.0,0.19183]
[1725772652263,0.17269546,54636.0,54635.0,0.19183]
[1725772652706,0.14399305,54636.0,54635.0,0.19183]
[1725772653614,0.13899305,54636.0,54635.0,0.19183]
[1725772654032,0.14199305,54636.0,54635.0,0.19183]
[1725772654472,0.13899305,54636.0,54635.0,0.19183]
[1725772654891,0.65247505,54636.0,54635.0,0.00163]
[1725772655098,0.76245773,54636.0,54635.0,0.00163]
[1725772655299,0.76145773,54636.0,54635.0,0.00163]
[1725772655733,0.76145773,54636.0,54635.0,0.00263]
[1725772656804,0.76145773,54636.0,54635.0,0.00363]
[1725772657028,0.76145773,54636.0,54635.0,0.00163]
[1725772657236,0.76245773,54636.0,54635.0,0.00163]
[1725772657447,0.76345773,54636.0,54635.0,0.00163]
[1725772657878,0.76245773,54636.0,54635.0,0.00163]
[1725772658123,0.76445773,54636.0,54635.0,0.00163]
[1725772658742,0.52447692,54636.0,54635.0,0.00163]
[1725772659351,0.65259692,54636.0,54635.0,0.00163]
[1725772663706,0.65259692,54636.0,54635.0,0.08603]
[1725772671007,0.39635592,54636.0,54635.0,0.08603]
[1725772673975,0.65259692,54636.0,54635.0,0.08603]
[1725772675778,0.39635592,54636.0,54635.0,0.08603]
[1725772678164,0.50635536,54636.0,54635.0,0.08603]
[1725772679749,0.10718073,54636.0,54635.0,0.08603]
[1725772680259,0.36423673,54636.0,54635.0,0.08603]
[1725772680727,0.39293723,54636.0,54635.0,0.08603]
[1725772681405,0.36423673,54636.0,54635.0,0.08603]
[1725772682547,0.000815,54636.0,54635.0,0.08603]
[1725772682788,0.000815,54636.0,54635.0,0.19563]
[1725772684870,0.02951526,54636.0,54635.0,0.19563]
[1725772685111,0.02951526,54636.0,54635.0,0.19863]
[1725772686270,0.02951526,54636.0,54635.0,0.19763]
[1725772687400,0.02951526,54636.0,54635.0,0.20063]
[1725772689878,0.13954126,54636.0,54635.0,0.20063]
[1725772690081,0.02951526,54636.0,54635.0,0.20063]
[1725772690734,0.13954126,54636.0,54635.0,0.20063]
[1725772690941,0.13954126,54636.0,54635.0,0.19763]
[1725772691151,0.13954126,54636.0,54635.0,0.19663]
[1725772691357,0.13954126,54636.0,54635.0,0.19763]
[1725772692026,0.13954126,54636.0,54635.0,0.19663]
[1725772692209,0.13954126,54636.0,54635.0,0.19863]
[1725772692767,0.13954126,54636.0,54635.0,0.19763]
[1725772693196,0.13958869,54636.0,54635.0,0.20063]
[1725772694105,0.1395888,54636.0,54635.0,0.20063]
[1725772695446,0.1395888,54636.0,54635.0,0.19863]
[1725772695663,0.1395888,54636.0,54635.0,0.19963]
[1725772695899,0.000815,54636.0,54635.0,0.583997]
[1725772696130,0.000815,54636.0,54635.0,0.324752]
[1725772696355,0.000815,54636.0,54635.0,0.580997]
[1725772696560,0.000815,54636.0,54635.0,0.581997]
[1725772696770,0.000815,54636.0,54635.0,0.580997]
[1725772697226,0.000815,54636.0,54635.0,0.583997]
[1725772697900,0.000815,54636.0,54635.0,0.582997]
[1725772698107,0.000815,54636.0,54635.0,0.584997]
[1725772699402,0.91998218,54636.0,54635.0,0.00663]
[1725772699685,0.91998218,54636.0,54621.0,0.444159]
[1725772699686,0.384459,54622.0,54621.0,0.444159]
[1725772699897,0.384459,54622.0,54612.0,0.087432]
[1725772699898,0.08776518,54622.0,54612.0,0.087432]
[1725772700082,0.21073693,54613.0,54612.0,0.001632]
[1725772700301,0.128174,54613.0,54612.0,0.001632]
[1725772700516,0.384523,54613.0,54612.0,0.001632]
[1725772700743,0.4669883,54613.0,54612.0,0.001632]
[1725772701196,0.384523,54613.0,54612.0,0.001632]
[1725772701660,0.128171,54615.0,54612.0,0.001632]
[1725772701870,0.128172,54614.0,54612.0,0.001632]
[1725772702088,0.005,54613.0,54612.0,0.001632]
[1725772702523,0.128172,54614.0,54612.0,0.001632]
[1725772703175,0.15688241,54614.0,54612.0,0.001632]
[1725772703547,0.00585712,54613.0,54612.0,0.001632]
[1725772703787,0.00085712,54613.0,54612.0,0.001632]
[1725772704838,0.00185712,54613.0,54612.0,0.001632]
[1725772705203,0.00385712,54613.0,54612.0,0.001632]
[1725772705831,0.13203112,54613.0,54612.0,0.001632]
[1725772706069,0.00385712,54613.0,54612.0,0.001632]
[1725772710399,0.00385712,54613.0,54612.0,0.571861]
[1725772710891,0.003,54613.0,54612.0,0.828214]
[1725772717158,0.02871041,54614.0,54613.0,0.384523]
[1725772717390,0.02871041,54614.0,54613.0,0.382523]
[1725772718068,0.02871041,54614.0,54613.0,0.381523]
[1725772718202,0.02871041,54614.0,54613.0,0.380523]
[1725772719043,0.02871041,54614.0,54613.0,0.38045646]
[1725772719450,0.02971041,54614.0,54613.0,0.64380546]
[1725772719853,0.02971041,54614.0,54613.0,1.08555446]
[1725772720066,0.03071041,54614.0,54613.0,1.18755446]
[1725772720491,0.002,54614.0,54613.0,1.18755446]
[1725772720701,0.001,54614.0,54613.0,1.18555446]
[1725772720922,0.000816,54621.0,54620.0,0.82619]
[1725772721159,0.000816,54621.0,54620.0,1.080506]
[1725772723125,0.001816,54621.0,54620.0,1.080506]
[1725772723551,0.001816,54621.0,54620.0,1.090506]
[1725772724415,0.002816,54621.0,54620.0,1.098506]
[1725772725484,0.0315195,54621.0,54620.0,1.098506]
[1725772727239,0.002816,54621.0,54620.0,1.098506]
[1725772730525,0.03151969,54621.0,54620.0,1.098506]
[1725772731389,0.03151969,54621.0,54620.0,0.74089]
[1725772731832,0.03151969,54621.0,54620.0,0.400474]